bitfinex/quotes_SOLUSD_20250908
["timestamp","ask_amount","ask_price","bid_price","bid_amount"]
[1757360762749,0.66,215.32,215.31,36.36]
[1757360763830,0.66,215.32,215.29,0.279]
[1757360764032,4.99002174,215.36,215.3,36.36]
[1757360764033,14.25559401,215.36,215.3,36.36]
[1757360764225,134.5,215.37,215.33,26.0]
[1757360764425,0.66,215.35,215.34,36.36]
[1757360768055,0.72,215.35,215.34,36.36]
[1757360769160,0.72,215.35,215.34,41.00381907]
[1757360769324,0.06,215.35,215.34,41.00381907]
[1757360771737,0.06,215.38,215.37,26.0]
[1757360771934,0.06,215.38,215.37,62.34]
[1757360772164,0.06,215.38,215.37,62.46]
[1757360772346,0.06,215.38,215.37,67.10317221]
[1757360772542,0.1,215.4,215.37,26.0]
[1757360772745,0.76,215.4,215.38,36.34]
[1757360773430,0.1,215.4,215.38,36.34]
[1757360773633,0.66,215.39,215.38,36.34]
[1757360774642,0.66,215.39,215.38,36.619]
[1757360775759,0.1,215.4,215.38,41.26195663]
[1757360775952,0.76,215.4,215.38,41.26195663]
[1757360776743,0.66,215.39,215.38,36.619]
[1757360777969,0.1,215.4,215.38,67.2617991]
[1757360778672,0.1,215.4,215.39,0.12]
[1757360780505,0.1,215.4,215.39,4.64274107]
[1757360782277,0.1,215.4,215.39,40.98274107]
[1757360782474,0.76,215.4,215.39,40.98274107]
[1757360784277,0.76,215.4,215.39,26.0]
[1757360784484,0.76,215.4,215.39,62.32]
[1757360785364,0.76,215.4,215.39,66.96274107]
[1757360785758,0.1,215.4,215.39,66.96274107]
[1757360786375,0.1,215.4,215.39,62.32]
[1757360786585,0.1,215.4,215.39,62.44]
[1757360786759,0.06,215.43,215.39,67.08274107]
[1757360787085,0.06,215.43,215.4,0.12]
[1757360787283,0.06,215.43,215.42,26.0]
[1757360787860,0.06,215.43,215.41,4.64231001]
[1757360788060,0.06,215.43,215.42,62.32]
[1757360789487,0.06,215.43,215.42,66.96209451]
[1757360789787,134.5,215.49,215.42,78.68733079]
[1757360789977,0.66,215.51,215.43,0.12]
[1757360790177,3.4175942,215.5,215.47,26.0]
[1757360790407,3.4175942,215.49,215.48,36.32]
[1757360791069,0.66,215.54,215.48,36.32]
[1757360791268,4.07846098,215.53,215.48,36.32]
[1757360791477,4.07846098,215.52,215.49,4.64058657]
[1757360791680,4.07846098,215.51,215.5,36.32]
[1757360791889,4.07846098,215.51,215.47,4.6410043]
[1757360792090,4.07776244,215.5,215.48,36.32]
[1757360792280,0.66,215.5,215.48,36.32]
[1757360792487,18.23510407,215.54,215.48,36.32]
[1757360792697,0.66,215.49,215.47,26.0]
[1757360792871,18.23510407,215.54,215.48,36.32]
[1757360793071,13.59559401,215.52,215.48,36.32]
[1757360793305,3.4173434,215.51,215.44,26.0]
[1757360793512,13.59559401,215.48,215.38,16.27996139]
[1757360793805,4.64058657,215.49,215.39,36.32]
[1757360793806,4.0773434,215.47,215.39,36.32]
[1757360794005,4.0773434,215.46,215.42,26.0]
[1757360794213,0.66,215.45,215.43,36.32]
[1757360794501,0.66,215.45,215.38,16.27996139]
[1757360794502,13.59559401,215.48,215.44,36.32]
[1757360794708,3.41762783,215.47,215.38,16.27996139]
[1757360795000,4.07762783,215.46,215.42,26.0]
[1757360795171,0.66,215.45,215.43,36.3]
[1757360795373,0.66,215.44,215.43,36.3]
[1757360796201,0.66,215.47,215.43,36.3]
[1757360796371,0.66,215.46,215.43,36.3]
[1757360796576,0.66,215.45,215.42,0.279]
[1757360796780,3.41821133,215.44,215.42,0.279]
[1757360797001,0.66,215.43,215.42,0.279]
[1757360798100,0.66,215.46,215.42,4.92109451]
[1757360798267,0.66,215.45,215.42,4.92109451]
[1757360798472,0.66,215.44,215.42,4.92109451]
[1757360803403,4.64103396,215.47,215.42,4.92109451]
[1757360803605,0.71,215.43,215.42,0.279]
[1757360803809,0.71,215.43,215.42,0.309]
[1757360805195,0.71,215.43,215.42,36.609]
[1757360810303,0.71,215.43,215.42,0.309]
[1757360810507,0.71,215.43,215.42,36.609]
[1757360814325,14.30559401,215.45,215.42,36.609]
[1757360814619,0.71,215.49,215.43,0.12]
[1757360815114,0.06,215.51,215.45,26.0]
[1757360815293,0.06,215.51,215.46,36.42]
[1757360815693,0.77,215.51,215.46,36.3]
[1757360815899,0.06,215.51,215.46,36.42]
[1757360817517,0.71,215.5,215.46,40.94102722]
[1757360817902,0.06,215.51,215.46,40.94102722]
[1757360818126,0.06,215.51,215.46,52.54410899]
[1757360818300,0.77,215.51,215.46,52.54410899]
[1757360818820,0.06,215.51,215.46,52.82310899]
[1757360819018,0.06,215.51,215.47,0.12]
[1757360819218,0.06,215.51,215.46,52.82310899]
[1757360819424,0.06,215.51,215.46,16.64310899]
[1757360819729,0.71,215.5,215.47,36.3]
[1757360819910,0.06,215.51,215.47,36.3]
[1757360819911,0.71,215.49,215.47,36.3]
[1757360821306,0.71,215.49,215.46,4.92015213]
[1757360821506,0.71,215.49,215.47,36.3]
[1757360822425,4.70020193,215.51,215.48,36.28]
[1757360822624,17.02423057,215.5,215.48,36.28]
[1757360822829,3.42863656,215.49,215.48,36.28]
[1757360823005,4.13863656,215.49,215.48,36.28]
[1757360824225,0.71,215.49,215.48,36.28]
[1757360825034,0.06,215.51,215.48,36.28]
[1757360825230,0.77,215.51,215.48,36.28]
[1757360825415,0.77,215.51,215.49,36.28]
[1757360825728,3.42854082,215.5,215.49,36.28]
[1757360826036,0.71,215.5,215.49,36.28]
[1757360826532,3.42901346,215.5,215.49,36.28]
[1757360826822,4.13901346,215.5,215.49,36.28]
[1757360827026,0.71,215.5,215.47,4.64097348]
[1757360827218,0.71,215.5,215.48,36.28]
[1757360827723,0.06,215.51,215.48,36.28]
[1757360827930,0.77,215.51,215.48,36.28]
[1757360828527,0.71,215.5,215.48,36.28]
[1757360828913,0.06,215.51,215.46,0.279]
[1757360828914,0.71,215.49,215.46,0.279]
[1757360829111,0.71,215.49,215.47,36.28]
[1757360829314,0.71,215.48,215.47,36.28]
[1757360829517,5.35080193,215.48,215.47,36.28]
[1757360830425,18.94639594,215.48,215.47,36.28]
[1757360830735,22.37517326,215.48,215.47,36.28]
[1757360830913,22.37517326,215.48,215.46,0.279]
[1757360831119,0.69,215.47,215.46,0.279]
[1757360831733,0.69,215.47,215.45,36.28]
[1757360831914,0.69,215.46,215.45,36.28]
[1757360832722,0.69,215.46,215.42,4.67205303]
[1757360833060,0.69,215.45,215.43,36.28]
[1757360833332,0.69,215.45,215.42,0.03]
[1757360833333,0.69,215.44,215.42,0.03]
[1757360833637,0.69,215.44,215.43,36.28]
[1757360835634,5.33166357,215.44,215.43,36.28]
[1757360836911,18.92725758,215.44,215.42,0.03]
[1757360837112,13.59559401,215.43,215.42,0.03]
[1757360837525,14.28559401,215.43,215.42,0.03]
[1757360839448,13.59559401,215.43,215.42,0.03]
[1757360839737,134.5,215.44,215.42,0.03]
[1757360839937,13.59559401,215.47,215.42,0.03]
[1757360840251,0.69,215.46,215.42,0.03]
[1757360840565,17.02595954,215.45,215.43,0.03]
[1757360840839,0.06,215.45,215.43,0.03]
[1757360841026,14.28559401,215.44,215.43,0.03]
[1757360841333,14.28559401,215.44,215.43,36.31]
[1757360841926,18.92725758,215.44,215.43,36.31]
[1757360843516,14.28559401,215.44,215.43,36.31]
[1757360844327,14.28559401,215.44,215.43,0.03]
[1757360844730,18.92725758,215.44,215.43,0.03]
[1757360844948,13.59559401,215.43,215.38,0.03]
[1757360845152,23.21065134,215.39,215.38,0.03]
[1757360845332,26.64122059,215.39,215.38,0.03]
[1757360845530,27.33122059,215.39,215.38,0.03]
[1757360846346,22.35489053,215.39,215.38,0.03]
[1757360846558,14.28559401,215.39,215.38,0.03]
[1757360846859,13.59559401,215.39,215.38,0.03]
[1757360847053,2.4835245,215.45,215.38,0.03]
[1757360847054,13.59559401,215.41,215.38,0.54]
[1757360847226,13.59559401,215.43,215.38,0.54]
[1757360847426,13.59559401,215.43,215.38,0.03]
[1757360847648,13.65559401,215.45,215.38,5.18294271]
[1757360847830,14.34559401,215.45,215.38,5.18294271]
[1757360848025,18.98718044,215.45,215.38,5.18294271]
[1757360848846,18.98705484,215.45,215.38,5.18294271]
[1757360851556,0.69,215.44,215.38,0.03]
[1757360852258,4.64187903,215.43,215.38,0.03]
[1757360852443,5.33187903,215.43,215.38,0.03]
[1757360852648,0.69,215.42,215.38,0.03]
[1757360853458,0.69,215.41,215.38,0.03]
[1757360854054,0.69,215.4,215.38,0.03]
[1757360854431,13.59559401,215.41,215.38,0.03]
[1757360854633,135.19,215.42,215.38,0.03]
[1757360855238,14.28559401,215.41,215.38,0.03]
[1757360855848,0.69,215.41,215.38,0.03]
[1757360856048,0.69,215.4,215.38,0.03]
[1757360856240,4.64274107,215.39,215.38,0.03]
[1757360856548,18.23833508,215.39,215.38,0.03]
[1757360856749,18.92833508,215.39,215.38,0.03]
[1757360860357,135.17,215.42,215.38,0.03]
[1757360860555,13.59559401,215.41,215.38,0.03]
[1757360860761,14.26559401,215.41,215.38,0.03]
[1757360860945,0.67,215.4,215.38,0.03]
[1757360861151,134.5,215.42,215.38,0.03]
[1757360861342,134.5,215.42,215.39,0.51]
[1757360861549,0.06,215.45,215.43,26.0]
[1757360861748,0.06,215.45,215.43,30.64181275]
[1757360862465,0.06,215.45,215.44,36.42]
[1757360862966,0.06,215.45,215.44,41.06166357]
[1757360864175,0.06,215.48,215.44,41.57166357]
[1757360864376,0.06,215.48,215.47,26.0]
[1757360864870,0.06,215.48,215.47,26.51]
[1757360865055,0.06,215.48,215.47,31.15101731]
[1757360867444,0.06,215.48,215.47,67.08101731]
[1757360867660,0.06,215.48,215.47,30.64101731]
[1757360867850,0.06,215.48,215.47,62.44]
[1757360868271,0.06,215.48,215.47,67.08101731]
[1757360868467,0.06,215.48,215.43,0.51]
[1757360868775,0.06,215.48,215.47,26.0]
[1757360869765,0.06,215.48,215.47,30.64101731]
[1757360870462,0.06,215.48,215.47,26.0]
[1757360870766,0.06,215.48,215.47,41.08101731]
[1757360871746,0.73,215.48,215.47,36.44]
[1757360871948,0.06,215.48,215.47,36.44]
[1757360872963,0.06,215.48,215.47,41.08101731]
[1757360873154,0.06,215.48,215.47,36.4]
[1757360873354,0.73,215.48,215.43,0.51]
[1757360873568,0.67,215.47,215.45,26.0]
[1757360873770,0.06,215.48,215.45,26.0]
[1757360873965,0.73,215.48,215.45,26.0]
[1757360874552,0.73,215.48,215.45,30.64141736]
[1757360874771,0.73,215.48,215.45,4.64141736]
[1757360874970,0.67,215.47,215.45,4.64141736]
[1757360875479,0.67,215.46,215.42,30.64207277]
[1757360875660,0.06,215.48,215.45,0.03]
[1757360875874,0.67,215.46,215.45,0.03]
[1757360876073,0.67,215.46,215.45,36.43]
[1757360878194,0.73,215.48,215.45,36.43]
[1757360878378,0.67,215.47,215.45,36.43]
[1757360880774,0.06,215.48,215.47,26.51]
[1757360880968,0.06,215.48,215.47,31.15101731]
[1757360882593,0.06,215.48,215.47,67.51101731]
[1757360882972,0.06,215.5,215.47,79.11356058]
[1757360883166,0.06,215.5,215.48,0.51]
[1757360883371,0.06,215.5,215.49,36.36]
[1757360883567,0.06,215.5,215.49,36.87]
[1757360885355,0.06,215.5,215.49,41.51058657]
[1757360885605,0.06,215.51,215.49,45.30591603]
[1757360885768,135.17,215.59,215.52,26.0]
[1757360885960,135.17,215.59,215.53,36.85]
[1757360886165,135.17,215.59,215.56,26.0]
[1757360886469,0.67,215.62,215.57,36.34]
[1757360886667,134.5,215.66,215.57,36.34]
[1757360886668,13.59559401,215.65,215.57,36.34]
[1757360886877,0.67,215.62,215.57,36.34]
[1757360887475,135.17,215.66,215.6,26.0]
[1757360887786,135.17,215.66,215.61,36.34]
[1757360887965,0.67,215.65,215.61,36.34]
[1757360888170,0.67,215.64,215.61,36.34]
[1757360888372,0.67,215.63,215.61,36.34]
[1757360889189,0.67,215.65,215.61,36.34]
[1757360889371,134.5,215.66,215.61,36.34]
[1757360889372,0.67,215.64,215.61,36.34]
[1757360889578,0.67,215.64,215.62,4.6377887]
[1757360889773,134.5,215.66,215.63,36.34]
[1757360889974,134.5,215.66,215.64,36.34]
[1757360890378,0.72,215.65,215.64,36.34]
[1757360891592,134.5,215.66,215.64,36.32]
[1757360892372,135.22,215.66,215.64,36.32]
[1757360893779,0.72,215.65,215.64,36.32]
[1757360895583,14.31559401,215.65,215.57,26.0]
[1757360895903,13.59559401,215.62,215.57,36.28]
[1757360896072,13.59559401,215.6,215.57,36.28]
[1757360896385,0.72,215.59,215.57,36.28]
[1757360896586,0.72,215.58,215.57,36.28]
[1757360897312,0.72,215.61,215.57,36.28]
[1757360897586,134.5,215.64,215.57,36.28]
[1757360897587,0.72,215.63,215.58,4.63864922]
[1757360897792,0.72,215.66,215.58,4.63864922]
[1757360897998,18.29251808,215.67,215.61,26.0]
[1757360897999,0.06,215.67,215.61,26.0]
[1757360898173,0.06,215.67,215.62,36.3]
[1757360898673,0.06,215.67,215.62,36.81]
[1757360899398,0.06,215.67,215.63,0.51]
[1757360899581,0.06,215.67,215.66,26.0]
[1757360899787,0.06,215.69,215.66,62.3]
[1757360900090,0.06,215.69,215.65,26.0]
[1757360900278,0.78,215.69,215.66,36.3]
[1757360900474,0.06,215.69,215.66,26.0]
[1757360900687,0.06,215.69,215.67,36.32]
[1757360902598,0.78,215.69,215.67,36.32]
[1757360903387,0.72,215.68,215.67,36.32]
[1757360904094,0.06,215.69,215.67,36.32]
[1757360904309,0.72,215.68,215.62,4.6377812]
[1757360904480,0.72,215.68,215.64,26.0]
[1757360905397,0.06,215.69,215.64,26.0]
[1757360905584,0.72,215.67,215.58,0.51]
[1757360906103,4.63714351,215.65,215.59,36.28]
[1757360906399,0.72,215.64,215.59,62.28]
[1757360906578,0.72,215.63,215.59,62.28]
[1757360907198,0.72,215.63,215.59,66.91841405]
[1757360907497,0.72,215.65,215.59,66.91841405]
[1757360907701,0.72,215.66,215.59,66.91841405]
[1757360908796,5.35693213,215.66,215.59,66.91841405]
[1757360908986,0.72,215.65,215.59,62.28]
[1757360909184,0.72,215.64,215.59,62.28]
[1757360909392,0.72,215.63,215.59,62.28]
[1757360910085,0.72,215.62,215.59,62.28]
[1757360910289,0.72,215.61,215.59,36.28]
[1757360910995,0.72,215.6,215.59,36.28]
[1757360912083,0.06,215.69,215.59,36.28]
[1757360912398,0.72,215.62,215.59,36.28]
[1757360913799,0.72,215.61,215.59,36.28]
[1757360914892,5.3580074,215.61,215.59,36.28]
[1757360915090,0.72,215.6,215.59,36.28]
[1757360915618,0.72,215.6,215.57,36.26]
[1757360915913,4.63804334,215.61,215.57,36.26]
[1757360916117,5.35804334,215.61,215.57,36.26]
[1757360916792,0.72,215.61,215.57,36.26]
[1757360916993,134.5,215.63,215.58,0.51]
[1757360917312,134.5,215.63,215.57,40.89877527]
[1757360917616,0.72,215.62,215.57,40.89882873]
[1757360918788,0.72,215.61,215.57,36.26]
[1757360919001,4.6378231,215.62,215.57,36.26]
[1757360919210,0.72,215.6,215.53,0.51]
[1757360919502,3.89729424,215.6,215.54,36.26]
[1757360919686,14.31559401,215.59,215.54,36.26]
[1757360919995,0.72,215.62,215.55,0.51]
[1757360920415,0.72,215.62,215.55,5.14909615]
[1757360920615,5.35779114,215.62,215.55,5.14909615]
[1757360920987,14.25559401,215.61,215.54,36.26]
[1757360921185,13.59559401,215.59,215.54,36.26]
[1757360921395,0.66,215.58,215.54,36.26]
[1757360921684,14.25559401,215.61,215.54,36.26]
[1757360921897,14.25559401,215.61,215.55,0.51]
[1757360922508,14.25559401,215.61,215.56,4.6390796]
[1757360922683,13.59559401,215.61,215.57,36.26]
[1757360922887,0.66,215.6,215.57,36.26]
[1757360923506,0.66,215.59,215.57,36.26]
[1757360924010,0.66,215.58,215.51,26.03]
[1757360924309,3.17729424,215.6,215.51,26.03]
[1757360924310,16.77288825,215.56,215.52,36.26]
[1757360924487,3.17729424,215.53,215.51,0.03]
[1757360925010,30.49312589,215.55,215.51,0.03]
[1757360925011,17.43288825,215.52,215.51,0.03]
[1757360925907,14.25559401,215.52,215.51,0.03]
[1757360926113,17.43288825,215.52,215.51,0.03]
[1757360926405,22.07282885,215.52,215.51,0.03]
[1757360926609,25.48636739,215.52,215.51,0.03]
[1757360927000,17.66913255,215.52,215.51,0.03]
[1757360927311,14.25559401,215.52,215.51,0.03]
[1757360928111,17.6663163,215.52,215.51,0.03]
[1757360928721,14.25559401,215.52,215.51,0.03]
[1757360928918,0.66,215.56,215.51,0.03]
[1757360929111,17.00528455,215.55,215.51,0.03]
[1757360929318,14.25559401,215.55,215.51,0.03]
[1757360929500,13.59559401,215.53,215.51,0.03]
[1757360929923,0.66,215.53,215.51,0.03]
[1757360930922,13.59559401,215.55,215.51,0.03]
[1757360931302,13.59559401,215.59,215.52,0.51]
[1757360931502,13.59559401,215.59,215.53,26.0]
[1757360932113,0.66,215.6,215.53,26.0]
[1757360932619,0.66,215.6,215.54,4.63951006]
[1757360932802,0.66,215.6,215.55,36.32]
[1757360933000,135.16,215.6,215.55,36.32]
[1757360933420,134.5,215.6,215.55,36.32]
[1757360933601,135.16,215.6,215.55,36.32]
[1757360934127,0.66,215.59,215.55,36.32]
[1757360934332,0.66,215.58,215.55,36.32]
[1757360934626,0.66,215.58,215.55,40.959241]
[1757360934841,135.16,215.6,215.55,40.959241]
[1757360935125,13.59559401,215.58,215.55,36.32]
[1757360935315,0.66,215.57,215.55,36.32]
[1757360937529,14.25559401,215.59,215.55,36.32]
[1757360937729,13.59559401,215.59,215.55,36.32]
[1757360938033,0.66,215.58,215.55,36.32]
[1757360940542,13.59559401,215.59,215.55,36.32]
[1757360940713,134.5,215.6,215.55,41.46924531]
[1757360941329,135.16,215.6,215.55,40.95924531]
[1757360942037,0.66,215.59,215.55,40.95924531]
[1757360944218,134.5,215.6,215.55,52.55748237]
[1757360944437,134.5,215.6,215.56,0.51]
[1757360944609,134.5,215.6,215.55,52.55748237]
[1757360944610,134.5,215.6,215.57,0.51]
[1757360944809,148.09559401,215.62,215.58,36.28]
[1757360945115,148.75559401,215.62,215.58,36.28]
[1757360945728,148.09559401,215.62,215.58,36.28]
[1757360945913,148.75559401,215.62,215.58,36.28]
[1757360946918,0.66,215.61,215.58,36.28]
[1757360947216,0.66,215.6,215.58,36.28]
[1757360947620,152.73349111,215.62,215.58,36.28]
[1757360947835,0.66,215.61,215.58,36.28]
[1757360948422,0.66,215.6,215.58,36.28]
[1757360950926,4.63803945,215.61,215.58,36.28]
[1757360951240,0.7,215.59,215.58,36.28]
[1757360952924,14.29559401,215.59,215.58,36.28]
[1757360953333,18.93402807,215.59,215.58,36.28]
[1757360953634,13.59559401,215.58,215.55,0.03]
[1757360953821,18.56367027,215.56,215.55,0.03]
[1757360954024,21.98237398,215.56,215.55,0.03]
[1757360954222,22.68237398,215.56,215.55,0.03]
[1757360954426,27.32145358,215.56,215.55,0.03]
[1757360955324,17.01429772,215.56,215.55,0.03]
[1757360956340,17.71429772,215.56,215.55,0.03]
[1757360956730,22.35337732,215.56,215.55,0.03]
[1757360958424,17.71429772,215.56,215.55,0.03]
[1757360959439,3.41870371,215.56,215.55,0.03]
[1757360959628,7.39013248,215.6,215.55,0.03]
[1757360959629,13.59559401,215.6,215.55,0.03]
[1757360959829,3.42272948,215.59,215.55,0.03]
[1757360960045,3.42272948,215.58,215.55,0.03]
[1757360960349,0.7,215.59,215.55,0.03]
[1757360960546,3.42363798,215.58,215.55,0.03]
[1757360960721,5.33851973,215.59,215.55,0.03]
[1757360961052,3.42363693,215.58,215.55,0.03]
[1757360961235,0.7,215.58,215.55,0.03]
[1757360961839,4.12389196,215.57,215.55,0.03]
[1757360962152,0.7,215.57,215.55,0.03]
[1757360962322,0.7,215.56,215.55,0.03]
[1757360962528,18.93467361,215.56,215.55,0.03]
[1757360963337,0.7,215.58,215.55,0.03]
[1757360963545,4.12501893,215.57,215.55,0.03]
[1757360963723,4.96807626,215.61,215.55,0.03]
[1757360963924,13.59559401,215.59,215.55,0.54]
[1757360964148,0.7,215.61,215.56,0.51]
[1757360964445,3.42415071,215.6,215.57,36.28]
[1757360964651,3.42415071,215.59,215.57,36.28]
[1757360964846,14.29559401,215.61,215.57,36.28]
[1757360965028,3.42443654,215.6,215.57,36.28]
[1757360965225,3.42443654,215.59,215.57,36.28]
[1757360965549,3.42443654,215.58,215.57,36.28]
[1757360966153,4.12443654,215.58,215.57,36.28]
[1757360966542,3.42443654,215.58,215.57,36.28]
[1757360967056,3.42443654,215.58,215.57,40.9188644]
[1757360967353,18.23363431,215.61,215.57,40.9188644]
[1757360967354,13.59559401,215.61,215.57,40.9188644]
[1757360967540,3.4255863,215.6,215.57,40.9188644]
[1757360967855,13.59559401,215.61,215.57,40.9188644]
[1757360968058,3.42559218,215.6,215.57,40.9188644]
[1757360968242,14.29559401,215.61,215.57,40.9188644]
[1757360968556,3.4257002,215.6,215.57,36.28]
[1757360968755,0.7,215.6,215.57,36.28]
[1757360969657,135.2,215.6,215.57,36.28]
[1757360971749,3.42594232,215.59,215.57,36.28]
[1757360972059,0.7,215.59,215.57,36.28]
[1757360972545,0.7,215.59,215.55,4.6692827]
[1757360972749,0.7,215.59,215.56,36.26]
[1757360973361,3.42762674,215.58,215.56,36.26]
[1757360973656,139.13827582,215.6,215.56,36.26]
[1757360973863,3.42756232,215.59,215.56,36.26]
[1757360974073,3.42763095,215.58,215.56,36.26]
[1757360974255,139.13827582,215.6,215.56,36.26]
[1757360974460,3.42802704,215.59,215.56,36.26]
[1757360974661,3.42802704,215.58,215.56,36.26]
[1757360974872,0.7,215.59,215.56,36.26]
[1757360975058,3.42824661,215.58,215.56,36.26]
[1757360975255,0.7,215.59,215.56,36.26]
[1757360975477,3.42960043,215.58,215.56,36.26]
[1757360975659,0.7,215.59,215.56,36.26]
[1757360975863,3.42866897,215.58,215.56,36.26]
[1757360976064,139.13827582,215.6,215.56,36.26]
[1757360976265,3.42880302,215.59,215.56,36.26]
[1757360976459,3.42880302,215.58,215.56,36.26]
[1757360976774,139.83827582,215.6,215.56,40.89907804]
[1757360976972,3.42927752,215.59,215.56,36.26]
[1757360977178,3.42927752,215.58,215.56,36.26]
[1757360977356,0.7,215.59,215.56,36.26]
[1757360977557,0.7,215.59,215.56,40.89907429]
[1757360977558,3.42925621,215.58,215.56,40.89907429]
[1757360977879,134.5,215.6,215.56,41.40907429]
[1757360978089,3.42885635,215.59,215.56,41.40907429]
[1757360978259,3.42885635,215.58,215.56,40.89907429]
[1757360978462,134.5,215.6,215.56,40.89907429]
[1757360978662,3.42883792,215.59,215.56,40.89907429]
[1757360978879,3.42883792,215.58,215.56,40.89907429]
[1757360979073,134.5,215.6,215.56,40.89907429]
[1757360979269,3.4289271,215.59,215.56,40.89907429]
[1757360979469,3.4289271,215.58,215.56,40.89907429]
[1757360979672,135.2,215.6,215.56,40.89907429]
[1757360979970,3.42875335,215.59,215.56,40.89907429]
[1757360980170,3.42875335,215.58,215.56,40.89907429]
[1757360980381,135.2,215.6,215.56,40.89907429]
[1757360980569,3.42874714,215.59,215.56,40.89907429]
[1757360980773,3.42874714,215.58,215.56,40.89907429]
[1757360980959,135.2,215.6,215.56,40.89907429]
[1757360981154,3.42874655,215.59,215.56,40.89907429]
[1757360981360,134.5,215.6,215.57,0.51]
[1757360981575,3.43019313,215.59,215.57,0.51]
[1757360981775,134.5,215.6,215.57,0.51]
[1757360981974,3.43019214,215.59,215.56,40.89907429]
[1757360982166,134.5,215.6,215.56,41.40907429]
[1757360982362,3.43017264,215.59,215.56,40.89907429]
[1757360982567,134.5,215.6,215.56,41.40907429]
[1757360982781,3.42995791,215.59,215.56,40.89907429]
[1757360983082,135.16,215.6,215.56,40.89907429]
[1757360983287,3.42996014,215.59,215.56,40.89907429]
[1757360983480,135.16,215.6,215.56,40.89907429]
[1757360983793,3.42988068,215.59,215.56,40.89907429]
[1757360983976,135.16,215.6,215.56,40.89907429]
[1757360984273,3.42988097,215.59,215.56,40.89907429]
[1757360984481,135.16,215.6,215.56,40.89907429]
[1757360984678,3.4297982,215.59,215.56,40.89907429]
[1757360984877,135.16,215.6,215.56,40.89907429]
[1757360985077,4.08979791,215.59,215.56,40.89907429]
[1757360985277,0.66,215.59,215.56,40.89907429]
[1757360985681,134.5,215.6,215.56,41.40907429]
[1757360985883,14.25559401,215.63,215.57,0.51]
[1757360986084,3.42975368,215.62,215.59,26.0]
[1757360986285,0.06,215.67,215.6,36.77]
[1757360986682,0.06,215.67,215.61,0.51]
[1757360986896,0.06,215.67,215.6,36.26]
[1757360987070,0.06,215.67,215.62,0.51]
[1757360987275,0.06,215.67,215.63,36.26]
[1757360988981,0.06,215.67,215.64,4.63735856]
[1757360990177,0.06,215.67,215.63,40.8975688]
[1757360992473,0.66,215.65,215.63,36.26]
[1757360993290,0.06,215.67,215.63,36.26]
[1757360993581,0.06,215.67,215.63,40.8975215]
[1757360993582,0.72,215.67,215.63,40.8975215]
[1757360994298,0.06,215.67,215.65,4.63714351]
[1757360995793,0.06,215.67,215.65,5.14714351]
[1757360996002,0.06,215.67,215.65,5.42684351]
[1757360997477,0.66,215.79,215.68,26.0]